bitfinex/quotes_ETHUSD_20241006
["timestamp","ask_amount","ask_price","bid_price","bid_amount"]
[1728219675019,6.28866,2432.6,2432.5,35.08385746]
[1728219675181,3.0,2432.6,2432.5,35.08385746]
[1728219675384,3.0,2432.6,2432.5,35.88335746]
[1728219679383,3.28859,2432.7,2432.5,35.88335746]
[1728219679580,6.28859,2432.7,2432.6,3.67054156]
[1728219680018,6.28859,2432.7,2432.6,3.74624464]
[1728219680216,3.0,2432.7,2432.6,3.74526559]
[1728219680420,6.28844,2432.8,2432.6,3.74526559]
[1728219680630,3.28747,2433.5,2432.7,0.85480423]
[1728219680631,6.57618,2433.1,2432.7,0.85480423]
[1728219680787,3.28809,2433.1,2433.0,0.00802139]
[1728219681208,3.28809,2433.1,2433.0,35.08319263]
[1728219681544,3.28809,2433.1,2433.0,35.83719263]
[1728219681884,6.28809,2433.1,2433.0,39.42091189]
[1728219682084,3.0,2433.2,2433.0,39.42091189]
[1728219682334,3.0,2433.1,2433.0,35.83719263]
[1728219682486,3.0,2433.2,2433.0,35.83719263]
[1728219684222,6.28798,2433.1,2433.0,35.83719263]
[1728219685725,3.0,2433.2,2433.0,35.83719263]
[1728219686137,3.28798,2433.1,2433.0,35.83719263]
[1728219686303,6.28798,2433.1,2433.0,35.83719263]
[1728219687313,3.0,2433.2,2433.0,35.83719263]
[1728219687521,3.0,2433.2,2433.1,0.08219013]
[1728219687717,3.2878,2433.3,2433.1,3.67412841]
[1728219687718,3.0,2433.3,2433.1,3.67412841]
[1728219687932,3.28766,2433.4,2433.2,0.08292677]
[1728219688094,3.28766,2433.4,2433.3,35.09020563]
[1728219688292,3.28766,2433.4,2433.3,35.08279386]
[1728219689101,6.28766,2433.4,2433.3,35.08279386]
[1728219689302,6.28766,2433.4,2433.3,36.64149452]
[1728219689518,6.28766,2433.4,2433.3,37.44359452]
[1728219689739,6.28766,2433.4,2433.3,35.88489386]
[1728219690723,6.28766,2433.4,2433.3,35.08279386]
[1728219691047,7.07916,2433.4,2433.3,35.08279386]
[1728219692640,6.28766,2433.4,2433.3,35.08279386]
[1728219693726,7.07916,2433.4,2433.3,35.08279386]
[1728219699402,6.28766,2433.4,2433.3,35.08279386]
[1728219701895,3.0,2433.4,2433.3,38.66801325]
[1728219702606,3.0,2433.6,2433.3,39.43051325]
[1728219702755,6.28732,2433.6,2433.5,0.00802139]
[1728219703159,6.28732,2433.6,2433.5,0.08252807]
[1728219706256,6.28732,2433.6,2433.5,35.08252807]
[1728219706455,6.28732,2433.6,2433.5,38.66703088]
[1728219717015,3.28704,2433.8,2433.5,39.42293088]
[1728219717175,3.0,2433.8,2433.7,0.76392139]
[1728219717611,3.0,2433.8,2433.7,0.83816233]
[1728219717907,3.0,2433.8,2433.7,4.78864566]
[1728219718299,6.28704,2433.8,2433.7,4.78864566]
[1728219720421,6.28704,2433.8,2433.7,0.83816233]
[1728219720713,6.28704,2433.8,2433.7,35.83816233]
[1728219728026,3.0,2433.8,2433.7,35.83816233]
[1728219728318,3.0,2433.9,2433.7,35.83816233]
[1728219728826,3.0,2433.9,2433.8,3.58381623]
[1728219728979,3.0,2433.9,2433.8,3.59183762]
[1728219729182,3.0,2433.9,2433.8,3.6659457]
[1728219730310,6.28686,2434.0,2433.8,3.6659457]
[1728219731931,6.28686,2434.0,2433.8,0.08212947]
[1728219732233,6.28685,2434.0,2433.9,35.0]
[1728219732581,6.28685,2434.0,2433.9,35.07397524]
[1728219734390,3.0,2434.1,2433.9,35.07397524]
[1728219734590,6.28671,2434.1,2434.0,0.82962139]
[1728219734791,6.28671,2434.1,2434.0,4.41998105]
[1728219734991,6.28671,2434.1,2434.0,0.90346379]
[1728219735193,6.28671,2434.1,2434.0,35.90346379]
[1728219739144,3.0,2434.1,2434.0,35.90346379]
[1728219739348,0.8295,2434.4,2434.0,35.90346379]
[1728219739553,3.0,2434.3,2434.2,0.7822]
[1728219739762,3.0,2434.3,2434.2,4.45841905]
[1728219741812,3.28588,2434.7,2434.2,4.54057078]
[1728219742013,3.28588,2434.7,2434.6,0.00802139]
[1728219742413,3.28588,2434.7,2434.6,0.08106702]
[1728219742613,3.28577,2434.8,2434.6,35.82872139]
[1728219742913,3.28577,2434.8,2434.7,3.59089353]
[1728219742914,6.28577,2434.8,2434.7,3.59089353]
[1728219743231,3.2855,2435.0,2434.7,3.6638064]
[1728219744049,0.8275,2435.1,2434.7,0.08093426]
[1728219744050,3.28569,2434.8,2434.7,0.08093426]
[1728219744221,4.11319,2434.8,2434.7,35.08093426]
[1728219744409,4.11319,2434.8,2434.7,37.08093426]
[1728219744824,7.11319,2434.8,2434.7,37.08093426]
[1728219746947,6.28569,2434.8,2434.7,37.08093426]
[1728219747252,6.28569,2434.8,2434.7,40.78902769]
[1728219748027,3.28569,2434.8,2434.7,40.78902769]
[1728219749357,3.0,2434.8,2434.7,40.78902769]
[1728219750423,6.28569,2434.8,2434.7,40.78902769]
[1728219756039,6.57096,2435.0,2434.7,40.78902769]
[1728219756189,9.57047,2435.2,2434.9,0.8236]
[1728219756491,6.28542,2435.0,2434.9,0.8236]
[1728219758170,3.0,2435.1,2434.9,0.8236]
[1728219758460,3.0,2435.1,2435.0,0.08212565]
[1728219758461,6.28541,2435.1,2435.0,0.08212565]
[1728219758681,6.28541,2435.1,2435.0,0.58219024]
[1728219759162,6.28541,2435.1,2435.0,0.50006459]
[1728219760820,3.28555,2434.9,2434.8,4.09492025]
[1728219761178,4.04755,2434.9,2434.8,4.09492025]
[1728219761801,4.04755,2434.9,2434.7,37.0]
[1728219761802,7.04755,2434.9,2434.7,37.0]
[1728219762082,6.28569,2434.8,2434.7,37.0]
[1728219762615,6.28569,2434.8,2434.7,37.07291287]
[1728219767219,6.28569,2434.8,2434.7,2.07291287]
[1728219767609,6.28569,2434.8,2434.7,37.07291287]
[1728219770211,7.04769,2434.8,2434.7,37.07291287]
[1728219779741,6.28569,2434.8,2434.7,37.07291287]
[1728219780946,7.06519,2434.8,2434.7,37.07291287]
[1728219781244,7.06519,2434.8,2434.7,37.0]
[1728219781630,7.06519,2434.8,2434.7,37.07291287]
[1728219782970,14.16808375,2434.8,2434.7,37.07291287]
[1728219783136,7.57467375,2434.8,2434.7,37.07291287]
[1728219784052,8.12467375,2434.8,2434.7,37.07291287]
[1728219784372,8.55403759,2434.8,2434.7,37.07291287]
[1728219784876,20.53509559,2434.8,2434.7,37.07291287]
[1728219785169,18.07715859,2434.8,2434.7,2.07291287]
[1728219785371,16.70736959,2434.8,2434.7,2.07291287]
[1728219785670,11.55451159,2434.8,2434.7,2.0]
[1728219785875,11.13589459,2434.8,2434.7,2.07055497]
[1728219786115,8.55403759,2434.8,2434.7,2.07055497]
[1728219788964,11.03553759,2434.8,2434.7,2.07055497]
[1728219789185,8.55403759,2434.8,2434.7,2.07055497]
[1728219789551,8.55403759,2434.8,2434.7,2.0]
[1728219789917,8.55403759,2434.8,2434.7,2.07055497]
[1728219793737,11.69671559,2434.8,2434.7,2.07055497]
[1728219795295,11.69671559,2434.8,2434.7,37.0]
[1728219795590,11.69671559,2434.8,2434.7,37.07055497]
[1728219796546,8.55403759,2434.8,2434.7,37.07055497]
[1728219796745,11.02173459,2434.8,2434.7,37.07055497]
[1728219797039,8.55403759,2434.8,2434.7,37.07055497]
[1728219798251,8.55403759,2434.8,2434.7,2.07055497]
[1728219798586,8.55403759,2434.8,2434.7,37.0]
[1728219798948,8.55403759,2434.8,2434.7,37.07055497]
[1728219800958,8.07551737,2434.8,2434.7,37.07055497]
[1728219801179,7.56603362,2434.8,2434.7,37.07055497]
[1728219801387,7.49455384,2434.8,2434.7,37.07055497]
[1728219801771,7.49455384,2434.8,2434.7,2.07055497]
[1728219802101,7.49455384,2434.8,2434.7,2.0]
[1728219802313,7.49455384,2434.8,2434.7,37.0]
[1728219802516,7.49455384,2434.8,2434.7,37.07055497]
[1728219803088,6.71505384,2434.8,2434.7,37.07055497]
[1728219805188,6.71505384,2434.8,2434.7,2.07055497]
[1728219805623,6.71505384,2434.8,2434.7,2.0]
[1728219805806,6.71505384,2434.8,2434.7,37.0]
[1728219806184,6.71505384,2434.8,2434.7,37.07055497]
[1728219807506,6.28569,2434.8,2434.7,37.07055497]
[1728219807696,6.28569,2434.8,2434.7,40.85405047]
[1728219808677,6.28569,2434.8,2434.7,6.61845047]
[1728219808981,6.28569,2434.8,2434.7,2.83495497]
[1728219809321,6.28569,2434.8,2434.7,37.7644]
[1728219809528,6.28569,2434.8,2434.7,37.83495497]
[1728219810609,3.28569,2434.8,2434.7,37.83495497]
[1728219811928,6.28569,2434.8,2434.7,37.83495497]
[1728219812099,6.28569,2434.8,2434.7,41.61845047]
[1728219815638,3.0,2434.8,2434.7,41.61845047]
[1728219815831,3.28555,2434.9,2434.8,0.7644]
[1728219816206,3.28535,2435.1,2434.8,0.83482222]
[1728219816414,6.57074,2435.1,2435.0,0.77032139]
[1728219816637,6.57074,2435.1,2435.0,35.77032139]
[1728219816953,6.57074,2435.1,2435.0,35.84047815]
[1728219817813,9.57074,2435.1,2435.0,35.84047815]
[1728219818647,6.28535,2435.1,2435.0,35.84047815]
[1728219818867,6.28535,2435.1,2435.0,39.42452597]
[1728219827371,6.28535,2435.1,2435.0,38.66222597]
[1728219827665,6.28535,2435.1,2435.0,35.07817815]
[1728219839354,3.0,2435.1,2435.0,35.90477815]
[1728219842196,6.28528,2435.1,2435.0,35.90477815]
[1728219843012,3.28516,2435.2,2435.0,35.90477815]
[1728219844319,3.28528,2435.1,2435.0,35.82857815]
[1728219844526,3.28516,2435.2,2435.0,39.41143596]
[1728219844725,6.57041,2435.2,2435.0,39.41143596]
[1728219844882,3.28516,2435.2,2435.0,39.41143596]
[1728219845527,3.0,2435.3,2435.0,39.41143596]
[1728219845736,6.28496,2435.4,2435.0,39.41143596]
[1728219845737,3.2847,2435.6,2435.2,0.7504]
[1728219845895,3.2847,2435.6,2435.5,0.00802139]
[1728219846284,3.2847,2435.6,2435.5,0.07751469]
[1728219847052,7.0825,2435.6,2435.5,0.07751469]
[1728219847216,7.59198375,2435.6,2435.5,0.07751469]
[1728219847416,21.84533375,2435.6,2435.5,0.07751469]
[1728219847612,22.27459676,2435.6,2435.5,0.07751469]
[1728219848752,4.08308,2435.1,2435.0,35.0]
[1728219848925,7.08308,2435.1,2435.0,35.06563027]
[1728219849132,7.63308,2435.1,2435.0,35.06563027]
[1728219849316,7.63308,2435.1,2435.0,0.06563027]
[1728219849511,3.28569,2434.8,2434.2,0.7504]
[1728219849712,7.08349,2434.8,2434.7,37.0]
[1728219850049,7.08349,2434.8,2434.7,37.06602848]
[1728219851820,7.59297375,2434.8,2434.7,37.06602848]
[1728219852043,16.02771375,2434.8,2434.7,2.07404987]
[1728219852413,16.02771375,2434.8,2434.7,2.00802139]
[1728219852917,16.02771375,2434.8,2434.7,2.07404987]
[1728219854653,15.23769875,2434.8,2434.7,2.07404987]
[1728219854860,14.728215,2434.8,2434.7,2.07404987]
[1728219855349,14.178215,2434.8,2434.7,2.07404987]
[1728219855555,7.08349,2434.8,2434.7,2.07404987]
[1728219855946,6.28569,2434.8,2434.7,2.07404987]
[1728219857135,6.28569,2434.8,2434.7,2.00802139]
[1728219857337,6.28569,2434.8,2434.7,37.00802139]
[1728219857540,6.28569,2434.8,2434.7,37.07404987]
[1728219858233,3.28569,2434.8,2434.7,40.85884486]
[1728219859748,6.28569,2434.8,2434.7,40.85884486]
[1728219861433,3.28556,2434.9,2434.7,41.66044486]
[1728219861655,3.28556,2434.9,2434.8,0.8016]
[1728219861856,3.28533,2435.1,2434.9,0.8016]
[1728219862085,3.28533,2435.1,2435.0,0.07365166]
[1728219862291,3.28533,2435.1,2435.0,0.87525166]
[1728219863498,6.28533,2435.1,2435.0,0.87525166]
[1728219864274,3.28533,2435.1,2435.0,0.87525166]
[1728219864473,3.28533,2435.1,2435.0,1.38048161]
[1728219864992,3.0,2435.4,2435.0,1.38048161]
[1728219865195,6.9985895,2435.6,2435.4,0.8016]
[1728219865403,3.7138995,2435.6,2435.5,0.00802139]
[1728219865559,0.0855492,2435.7,2435.5,0.0729882]
[1728219865759,3.3700292,2435.7,2435.6,35.0]
[1728219865998,3.3700292,2435.7,2435.6,39.46210416]
[1728219868184,0.0855492,2435.7,2435.6,39.46210416]
[1728219868500,3.3700192,2435.7,2435.6,39.46210416]
[1728219868672,0.0855492,2435.7,2435.6,39.46210416]
[1728219869977,0.0855492,2435.7,2435.6,42.74671416]
[1728219870276,0.0855492,2435.7,2435.6,39.46210416]
[1728219870681,0.0855492,2435.7,2435.6,42.74671416]
[1728219876615,0.07141729,2437.0,2436.7,3.28307]
[1728219876845,3.28219,2437.4,2436.1,20.68]
[1728219876846,3.28267,2437.1,2436.9,0.00802139]
[1728219877038,3.28272,2437.0,2436.9,0.00802139]
[1728219877251,3.28246,2437.2,2437.0,0.06297805]
[1728219877458,3.28246,2437.2,2437.1,0.00802139]
[1728219877828,3.28246,2437.2,2437.1,0.07086694]
[1728219878035,3.28246,2437.2,2437.1,0.00802139]
[1728219878546,6.28246,2437.2,2437.1,0.07086694]
[1728219878728,6.28246,2437.2,2437.1,0.00802139]
[1728219879039,7.04196,2437.2,2437.1,0.00802139]
[1728219879556,7.04196,2437.2,2437.1,35.00802139]
[1728219879557,7.4708774,2437.2,2437.1,35.00802139]
[1728219879715,7.4708774,2437.2,2437.1,35.07080196]
[1728219882963,0.4289174,2437.2,2437.1,35.07080196]
[1728219883261,4.0792,2437.5,2437.1,35.07080196]
[1728219884373,3.0,2437.4,2437.1,35.07080196]
[1728219886360,3.0,2437.4,2437.1,0.07080196]
[1728219886667,6.28192,2437.6,2437.3,0.00802139]
[1728219886869,6.28192,2437.6,2437.5,0.00802139]
[1728219887168,6.28192,2437.6,2437.5,0.0702462]
[1728219887891,3.0,2437.6,2437.5,0.0702462]
[1728219888229,0.0008,2437.8,2437.6,0.8092]
[1728219888436,0.0008,2437.8,2437.7,0.00802139]
[1728219888670,0.0008,2437.8,2437.7,0.06998134]
[1728219889003,0.0008,2437.8,2437.7,2.06998134]
[1728219889283,0.0008,2437.8,2437.7,2.72489768]
[1728219889734,0.0008,2437.8,2437.7,3.53409768]
[1728219890336,0.0008,2437.8,2437.7,38.53409768]
[1728219898378,0.0008,2437.8,2437.7,41.81587768]
[1728219899276,0.0008,2437.8,2437.7,42.36587768]
[1728219899458,0.0008,2437.8,2437.7,38.53409768]
[1728219899883,0.0008,2437.8,2437.7,41.81587768]
[1728219900451,0.0008,2437.8,2437.7,38.53409768]
[1728219900786,0.0008,2437.8,2437.7,44.36587768]
[1728219901173,0.0008,2437.8,2437.7,42.36587768]
[1728219901472,0.0008,2437.8,2437.7,44.36587768]
[1728219902460,3.27997,2439.1,2438.4,0.7857]
[1728219902687,3.27998,2439.1,2439.0,0.00802139]
[1728219902888,6.55998,2439.1,2439.0,0.00802139]
[1728219903096,3.27998,2439.1,2439.0,0.06825407]
[1728219903399,3.27987,2439.2,2439.0,35.00802139]
[1728219903551,3.27987,2439.2,2439.0,35.06825407]
[1728219903756,3.27987,2439.2,2439.0,37.74506699]
[1728219904212,3.27957,2439.4,2439.0,37.74506699]
[1728219904399,0.39814067,2439.9,2439.3,0.00802139]
[1728219904563,7.43,2440.2,2439.8,0.00802139]
[1728219904768,7.43,2440.2,2439.4,0.7857]
[1728219904769,3.27882,2439.9,2439.5,0.08197225]
[1728219904952,3.27895,2439.8,2439.6,0.08196834]
[1728219905151,0.39814067,2440.2,2438.7,2.0]
[1728219905355,0.39814067,2440.2,2438.8,0.7857]
[1728219905356,3.28,2439.1,2438.8,0.7857]
[1728219905592,3.28,2439.1,2439.0,0.00802139]
[1728219905766,3.27987,2439.2,2439.0,0.00802139]
[1728219905957,3.27987,2439.2,2439.1,35.0]
[1728219906154,3.0,2439.2,2439.1,35.0]
[1728219906354,3.27948,2439.5,2439.1,38.5]
[1728219906593,3.27917,2439.7,2439.4,0.00802139]
[1728219906799,3.27917,2439.7,2439.6,0.00802139]
[1728219907104,3.27917,2439.7,2439.6,35.00802139]
[1728219907593,6.27917,2439.7,2439.6,35.00802139]
[1728219910404,6.58277,2439.7,2439.6,35.00802139]
[1728219911468,7.13277,2439.7,2439.6,35.00802139]
[1728219911669,7.13277,2439.7,2439.6,0.00802139]
[1728219912208,7.13277,2439.7,2437.8,10.62162]
[1728219912209,3.27962,2439.3,2439.2,0.00802139]
[1728219912412,6.27962,2439.3,2439.2,0.05622951]
[1728219912567,3.28016,2438.9,2438.8,35.0]
[1728219916307,3.28039,2438.8,2438.5,0.7857]
[1728219916678,3.0,2439.2,2438.7,35.0]
[1728219917007,3.2803,2438.8,2438.7,35.0]
[1728219917302,6.2803,2438.8,2438.7,35.0]
[1728219924779,6.5839,2438.8,2438.7,35.0]
[1728219925507,21.4255624,2438.8,2438.7,35.0]
[1728219925711,18.9033884,2438.8,2438.7,35.0]
[1728219926055,14.3840604,2438.8,2438.7,35.0]
[1728219926241,7.0125654,2438.8,2438.7,35.0]
[1728219926838,3.28164,2437.8,2437.7,2.0]
[1728219927159,6.28164,2437.8,2437.7,2.0]
[1728219927365,6.28164,2437.8,2437.7,37.0]
[1728219927558,6.28164,2437.8,2437.7,37.00802139]
[1728219927741,6.28164,2437.8,2437.7,37.06259417]
[1728219928424,6.58524,2437.8,2437.7,37.06259417]
[1728219928813,7.23113992,2437.8,2437.7,37.06259417]
[1728219929215,13.97474292,2437.8,2437.7,37.06259417]
[1728219930136,14.52474292,2437.8,2437.7,37.06259417]
[1728219930747,13.60473892,2437.8,2437.7,37.06259417]
[1728219930952,9.183855,2437.8,2437.7,37.06259417]
[1728219932953,7.26536492,2437.8,2437.7,37.06259417]
[1728219934058,11.70597992,2437.8,2437.7,37.06259417]
[1728219934266,11.04397992,2437.8,2437.7,37.06259417]
[1728219935227,9.87095992,2437.8,2437.7,37.06259417]
[1728219935859,10.29981919,2437.8,2437.7,37.06259417]
[1728219936058,10.84981919,2437.8,2437.7,37.06259417]
[1728219936357,10.84981919,2437.8,2437.7,2.01870806]
[1728219936722,10.84981919,2437.8,2437.7,1.96413528]
[1728219937256,10.84981919,2437.8,2437.7,2.01870806]
[1728219937419,10.84981919,2437.8,2437.7,0.06259417]
[1728219937863,6.28258,2437.1,2437.0,35.0]
[1728219938076,6.96270492,2437.1,2437.0,35.0]
[1728219938755,6.96270492,2437.1,2437.0,37.0]
[1728219938930,7.51270492,2437.1,2437.0,2.0]
[1728219939131,44.60603592,2437.1,2437.0,2.0]
[1728219939358,41.08548292,2437.1,2437.0,2.0]
[1728219939666,31.14239192,2437.1,2437.0,2.0]
[1728219940055,7.13672,2436.7,2436.6,35.0]
[1728219940376,7.13672,2436.7,2435.5,0.7687]
[1728219940377,3.28456,2435.7,2435.5,0.7687]
[1728219940888,3.28461,2435.6,2435.5,0.7687]
[1728219941234,3.28461,2435.6,2435.5,35.7687]
[1728219941576,3.28461,2435.6,2435.5,39.35359139]
[1728219943465,6.28461,2435.6,2435.5,35.00802139]
[1728219945583,6.28461,2435.6,2435.5,35.05859214]
[1728219947457,6.23012778,2435.6,2435.5,35.05859214]
[1728219949593,6.23012778,2435.6,2435.5,0.05859214]
[1728219950000,6.23012778,2435.6,2435.5,35.00802139]
[1728219950398,6.23012778,2435.6,2435.5,35.05859214]
[1728219956135,6.9102527,2435.6,2435.5,35.05859214]
[1728219956433,12.79431691,2435.6,2435.5,35.05859214]
[1728219957123,13.34431691,2435.6,2435.5,35.05859214]
[1728219959086,13.64791691,2435.6,2435.5,0.05859214]
[1728219959434,13.64791691,2435.6,2435.5,0.00802139]
[1728219960289,13.64791691,2435.6,2435.5,0.05680518]
[1728219960488,13.64791691,2435.6,2435.5,0.00802139]
[1728219960489,12.79431691,2435.6,2435.5,0.00802139]
[1728219960718,6.65934799,2435.6,2435.5,0.05680518]
[1728219960926,6.65934799,2435.6,2435.5,0.00802139]
[1728219961239,36.25258999,2435.6,2435.5,0.05680518]
[1728219961388,37.14947728,2435.6,2435.5,0.05680518]
[1728219962025,37.69947728,2435.6,2435.5,0.05680518]
[1728219962194,24.23067728,2435.6,2435.5,0.05680518]
[1728219962829,20.02904728,2435.6,2435.5,0.05680518]
[1728219963035,19.63465428,2435.6,2435.5,0.05680518]
[1728219963461,14.24033828,2435.6,2435.5,0.05680518]
[1728219963745,8.10623528,2435.6,2435.5,0.05680518]
[1728219964149,8.10623528,2435.6,2435.5,0.00802139]
[1728219964725,7.80263528,2435.6,2435.5,0.00802139]
[1728219964934,20.56787028,2435.6,2435.5,0.00802139]
[1728219965242,13.28218128,2435.6,2435.5,0.00802139]
[1728219965606,7.80263528,2435.6,2435.5,0.00802139]
[1728219966441,7.25263528,2435.6,2435.5,0.00802139]
[1728219966649,6.65934799,2435.6,2435.5,0.00802139]
[1728219966881,6.23012778,2435.6,2435.5,0.00802139]
[1728219967002,3.23012778,2435.6,2435.5,0.75872139]
[1728219968030,3.23012778,2435.6,2435.5,0.80750518]
[1728219968327,6.23012778,2435.6,2435.5,0.75872139]
[1728219971075,3.28449,2435.7,2435.5,0.75872139]
[1728219971225,3.28461,2435.6,2435.5,0.75872139]
[1728219971417,3.28449,2435.7,2435.5,0.75872139]
[1728219972260,6.56857,2435.9,2435.5,0.75872139]
[1728219972421,3.0,2435.8,2435.7,0.7507]
[1728219972622,3.0,2435.8,2435.7,0.75872139]
[1728219972858,3.0,2435.8,2435.7,0.80723987]
[1728219973032,3.0,2435.8,2435.7,35.80723987]
[1728219973239,6.28434,2435.8,2435.7,39.38796386]
[1728219973652,6.87762729,2435.8,2435.7,35.05653987]
[1728219975677,6.28434,2435.8,2435.7,35.05653987]
[1728219976736,6.28434,2435.8,2435.7,0.05653987]
[1728219977131,6.28434,2435.8,2435.7,35.00802139]
[1728219977435,6.28434,2435.8,2435.7,35.05653987]
[1728219978738,31.99778129,2435.8,2435.7,0.05653987]
[1728219979077,15.40627619,2435.8,2435.7,0.00802139]
[1728219979242,7.85618619,2435.8,2435.7,0.00802139]
[1728219979832,7.85618619,2435.8,2435.7,0.05653987]
[1728219980238,7.85505076,2435.8,2435.7,0.05653987]
[1728219980783,13.88630576,2435.8,2435.7,0.05653987]
[1728219981135,13.88630576,2435.8,2435.7,0.04851848]
[1728219981336,16.97936976,2435.8,2435.7,0.04851848]
[1728219981584,3.28461,2435.6,2435.5,0.00802139]
[1728219981878,33.14739029,2435.6,2435.5,0.00802139]
[1728219982296,36.45099029,2435.6,2435.5,0.00802139]
[1728219983560,29.39377429,2435.6,2435.5,0.00802139]
[1728219985255,29.39377429,2435.6,2435.5,35.00802139]
[1728219985997,29.39377429,2435.6,2435.5,0.00802139]
[1728219987474,29.39377429,2435.6,2435.5,0.05680518]
[1728219987689,31.97460759,2435.6,2435.5,0.04878379]
[1728219987877,3.28501,2435.3,2435.2,0.00802139]
[1728219988214,6.28501,2435.3,2435.2,0.05720323]
[1728219988376,7.42829729,2435.3,2435.2,0.00802139]
[1728219988702,7.42829729,2435.3,2435.2,35.0]
[1728219988888,7.73189729,2435.3,2435.2,35.04918184]
[1728219989506,11.34600429,2435.3,2435.2,35.04918184]
[1728219989703,7.73189729,2435.3,2435.2,35.04918184]
[1728219990399,23.84451229,2435.3,2435.2,35.04918184]
[1728219990656,15.61028729,2435.3,2435.2,35.04918184]
[1728219991448,15.61028729,2435.3,2435.2,0.04918184]
[1728219991742,3.0,2435.2,2435.0,0.00802139]
[1728219991947,6.28528,2435.1,2435.0,0.00802139]
[1728219992538,6.28528,2435.1,2435.0,35.7737]
[1728219992839,6.87856729,2435.1,2435.0,35.78172139]
[1728219993031,6.87856729,2435.1,2435.0,35.83116864]
[1728219997066,6.87856729,2435.1,2435.0,35.05746864]
[1728220000057,7.73216729,2435.1,2435.0,35.05746864]
[1728220000255,17.23511229,2435.1,2435.0,35.05746864]
[1728220001384,12.63485129,2435.1,2435.0,35.05746864]
[1728220001562,12.63485129,2435.1,2435.0,0.05746864]
[1728220001563,6.87856729,2435.1,2435.0,0.05746864]
[1728220001738,6.28528,2435.1,2435.0,0.05746864]
[1728220001935,6.28528,2435.1,2435.0,35.00802139]
[1728220002377,6.28528,2435.1,2435.0,35.05746864]
[1728220003456,6.83528,2435.1,2435.0,35.05746864]
[1728220003852,19.846967,2435.1,2435.0,35.05746864]
[1728220004164,17.32803429,2435.1,2435.0,0.05746864]
[1728220004549,17.32803429,2435.1,2435.0,0.00802139]
[1728220004950,17.32803429,2435.1,2435.0,0.05746864]
[1728220005156,17.32803429,2435.1,2435.0,0.00802139]
[1728220005355,17.32803429,2435.1,2435.0,0.05746864]
[1728220005552,17.32803429,2435.1,2435.0,0.00802139]
[1728220005857,28.12643229,2435.1,2435.0,0.05746864]
[1728220006067,28.12643229,2435.1,2435.0,0.00802139]
[1728220006270,28.12643229,2435.1,2435.0,0.05746864]
[1728220006490,28.12643229,2435.1,2435.0,0.00802139]
[1728220006692,28.12643229,2435.1,2435.0,0.05746864]
[1728220006990,28.43003229,2435.1,2435.0,0.05746864]
[1728220007380,28.85815383,2435.1,2435.0,0.04944725]
[1728220007800,3.28555,2434.9,2434.8,0.00802139]
[1728220008084,6.83555,2434.9,2434.8,0.00802139]
[1728220014099,7.42883729,2434.9,2434.8,0.00802139]
[1728220014673,6.87883729,2434.9,2434.8,0.00802139]
[1728220015063,6.87883729,2434.9,2434.8,35.00802139]
[1728220015512,6.87883729,2434.9,2434.8,35.05773411]
[1728220015863,6.87883729,2434.9,2434.8,35.81133411]
[1728220017471,6.87883729,2434.9,2434.8,39.39246752]
[1728220017472,3.87883729,2434.9,2434.8,39.39246752]
[1728220018998,6.87883729,2434.9,2434.8,35.81133411]
[1728220020716,6.28555,2434.9,2434.8,35.81133411]
[1728220021632,3.28543,2435.0,2434.9,0.82]
[1728220022121,3.28543,2435.0,2434.9,0.86957998]
[1728220023330,3.0,2435.1,2434.9,0.86957998]
[1728220023529,3.0,2435.1,2435.0,4.41578153]
[1728220023691,3.0,2435.1,2435.0,0.87746864]
[1728220024029,6.28538,2435.1,2435.0,35.87746864]
[1728220031560,6.28528,2435.1,2435.0,35.87746864]
[1728220039991,3.0,2435.1,2435.0,35.87746864]
[1728220040577,6.28503,2435.3,2435.0,35.87746864]
[1728220040786,6.28503,2435.3,2435.1,1.79999483]
[1728220041079,6.28503,2435.3,2435.2,0.00802139]
[1728220041288,6.28503,2435.3,2435.2,0.87860323]
[1728220041451,0.59328729,2435.5,2435.2,0.87860323]
[1728220041781,6.56984,2435.4,2435.2,0.87860323]
[1728220042114,3.28489,2435.4,2435.3,0.2758812]
[1728220042451,3.28489,2435.4,2435.3,0.32493034]
[1728220042784,6.28489,2435.4,2435.3,0.32493034]
[1728220044388,6.28489,2435.4,2435.3,35.05707053]
[1728220046868,6.87817729,2435.4,2435.3,35.05707053]
[1728220047593,6.87817729,2435.4,2435.3,35.00802139]
[1728220047977,6.87817729,2435.4,2435.3,35.05707053]
[1728220050108,6.87817729,2435.4,2435.3,0.05707053]
[1728220050468,6.87817729,2435.4,2435.3,35.00802139]
[1728220050858,6.87817729,2435.4,2435.3,35.05707053]
[1728220052113,6.28489,2435.4,2435.3,35.05707053]
[1728220053809,6.28489,2435.4,2435.3,0.05707053]
[1728220054307,6.28489,2435.4,2435.3,35.00802139]
[1728220054671,6.28489,2435.4,2435.3,35.05707053]
[1728220057312,6.28489,2435.4,2435.3,35.86197053]
[1728220059926,3.0,2435.4,2435.3,35.86197053]
[1728220060082,6.28488,2435.4,2435.3,39.44816758]
[1728220060931,6.28488,2435.4,2435.3,35.86197053]
[1728220061275,6.28488,2435.4,2435.3,35.05707053]
[1728220061476,6.87816729,2435.4,2435.3,35.05707053]
[1728220062012,6.87816729,2435.4,2435.3,35.00802139]
[1728220062458,6.87816729,2435.4,2435.3,35.05707053]
[1728220066544,7.18176729,2435.4,2435.3,35.05707053]
[1728220066730,9.76370248,2435.4,2435.3,35.05707053]
[1728220067115,15.46615129,2435.4,2435.3,35.00802139]
[1728220067316,16.44378965,2435.4,2435.3,35.00802139]
[1728220067515,16.44378965,2435.4,2435.3,35.05707053]
[1728220067744,19.45604738,2435.4,2435.3,0.05707053]
[1728220067910,19.45604738,2435.4,2435.3,0.00802139]
[1728220068112,16.44378965,2435.4,2435.3,0.00802139]
[1728220068313,19.46074594,2435.4,2435.3,0.00802139]
[1728220068512,16.44378965,2435.4,2435.3,0.00802139]
[1728220068957,19.4607424,2435.4,2435.3,0.05707053]
[1728220069157,19.4607424,2435.4,2435.3,0.00802139]
[1728220069745,19.4607424,2435.4,2435.3,0.05536053]
[1728220069920,19.4607424,2435.4,2435.3,0.00802139]
[1728220070146,19.4607424,2435.4,2435.3,0.05536053]
[1728220070348,19.4607424,2435.4,2435.3,0.00802139]
[1728220070963,19.4607424,2435.4,2435.3,0.05536053]
[1728220071172,19.4607424,2435.4,2435.3,0.00802139]
[1728220071923,16.44378965,2435.4,2435.3,0.04733914]